[Event "Betsys MČR v online bleskovém šachu 2021"]
[Site "Chess.com"]
[Date "2021.04.17"]
[Round "2"]
[White "dino5517"]
[Black "p_kana"]
[Result "0-1"]
[WhiteElo "1391"]
[BlackElo "1804"]
[TimeControl "180+1"]
[EndTime "9:17:20 PDT"]
[Termination "Uživatel p_kana zvítězil po vzdání soupeře"]

1. e4 {[%clk 0:03:00.9]} 1... c5 {[%clk 0:02:56.3]} 2. Nf3 {[%clk 0:03:00]} 2...
e6 {[%clk 0:02:55.4]} 3. d4 {[%clk 0:02:59.9]} 3... cxd4 {[%clk 0:02:56.3]} 4.
Nxd4 {[%clk 0:02:59.9]} 4... a6 {[%clk 0:02:56.5]} 5. Nc3 {[%clk 0:02:59.2]}
5... Qc7 {[%clk 0:02:56.5]} 6. Be3 {[%clk 0:02:59.4]} 6... Nf6 {[%clk
0:02:52.6]} 7. Qd2 {[%clk 0:02:56]} 7... Bb4 {[%clk 0:02:51.1]} 8. Bd3 {[%clk
0:02:48.9]} 8... d5 {[%clk 0:02:50.2]} 9. exd5 {[%clk 0:02:38]} 9... Nxd5 {[%clk
0:02:49]} 10. O-O {[%clk 0:02:28.7]} 10... Nxc3 {[%clk 0:02:44.6]} 11. bxc3
{[%clk 0:02:22.8]} 11... Bxc3 {[%clk 0:02:44]} 12. Qe2 {[%clk 0:02:22.8]} 12...
Bxa1 {[%clk 0:02:41.4]} 13. Rxa1 {[%clk 0:02:23.7]} 13... Nc6 {[%clk 0:02:37.1]}
14. Nxc6 {[%clk 0:02:21]} 14... Qxc6 {[%clk 0:02:36.4]} 15. Rd1 {[%clk
0:02:13.3]} 15... O-O {[%clk 0:02:34.6]} 16. Qh5 {[%clk 0:02:08.7]} 16... f5
{[%clk 0:02:33]} 17. g4 {[%clk 0:02:02.1]} 17... b5 {[%clk 0:02:24.6]} 18. gxf5
{[%clk 0:01:57.7]} 18... Bb7 {[%clk 0:02:14.3]} 19. f3 {[%clk 0:01:45.6]} 19...
Qxf3 {[%clk 0:01:57.5]} 20. Qxf3 {[%clk 0:01:44.4]} 20... Bxf3 {[%clk
0:01:56.2]} 21. Rf1 {[%clk 0:01:41.2]} 21... Bd5 {[%clk 0:01:54.5]} 22. Rf4
{[%clk 0:01:30.5]} 22... exf5 {[%clk 0:01:50.5]} 23. Bd4 {[%clk 0:01:24.1]}
23... Be4 {[%clk 0:01:41.5]} 24. Bxe4 {[%clk 0:01:17.9]} 24... fxe4 {[%clk
0:01:38.5]} 25. Rxe4 {[%clk 0:01:18.2]} 25... Rae8 {[%clk 0:01:34.7]} 26. Rg4
{[%clk 0:01:16.5]} 26... g6 {[%clk 0:01:34.3]} 27. h4 {[%clk 0:01:14.8]} 27...
Re1+ {[%clk 0:01:31]} 28. Kg2 {[%clk 0:01:11.7]} 28... Re2+ {[%clk 0:01:30.8]}
29. Kg3 {[%clk 0:01:04.8]} 29... Rf5 {[%clk 0:01:28]} 30. c3 {[%clk 0:01:00.4]}
30... Rxa2 {[%clk 0:01:23]} 31. Re4 {[%clk 0:00:58.1]} 31... Kf7 {[%clk
0:01:18.9]} 32. Kg4 {[%clk 0:00:51.7]} 32... Rg2+ {[%clk 0:01:16.2]} 33. Kh3
{[%clk 0:00:51]} 33... Rd2 {[%clk 0:01:13.6]} 34. Rg4 {[%clk 0:00:41.3]} 34...
Rf3+ {[%clk 0:01:08.7]} 35. Rg3 {[%clk 0:00:39]} 35... Rxg3+ {[%clk 0:01:08.6]}
36. Kxg3 {[%clk 0:00:39.9]} 36... Re2 {[%clk 0:01:03.4]} 37. Kf3 {[%clk
0:00:39.5]} 37... Re6 {[%clk 0:01:02]} 38. Kf4 {[%clk 0:00:38.3]} 38... a5
{[%clk 0:01:01.8]} 39. Kg5 {[%clk 0:00:35.6]} 39... h5 {[%clk 0:00:59.7]} 40.
Kh6 {[%clk 0:00:30.6]} 40... a4 {[%clk 0:00:58.9]} 41. Kg5 {[%clk 0:00:28.8]}
41... a3 {[%clk 0:00:58.6]} 42. Kf4 {[%clk 0:00:25.7]} 42... a2 {[%clk
0:00:58.1]} 43. c4 {[%clk 0:00:25.4]} 43... bxc4 {[%clk 0:00:57.6]} 44. Bc3
{[%clk 0:00:25.5]} 44... Ra6 {[%clk 0:00:52.7]} 45. Ke4 {[%clk 0:00:24.4]} 45...
a1=Q {[%clk 0:00:51.3]} 46. Bxa1 {[%clk 0:00:24.8]} 46... Rxa1 {[%clk
0:00:50.6]} 47. Kd4 {[%clk 0:00:25.1]} 47... Ra8 {[%clk 0:00:49.6]} 48. Kxc4
{[%clk 0:00:25.3]} 48... Rd8 {[%clk 0:00:48.9]} 49. Kc3 {[%clk 0:00:23.6]} 49...
g5 {[%clk 0:00:49]} 50. hxg5 {[%clk 0:00:21.7]} 50... h4 {[%clk 0:00:47.1]} 0-1

[Event "Betsys MČR v online bleskovém šachu 2021"]
[Site "Chess.com"]
[Date "2021.04.17"]
[Round "2"]
[White "MrNikdo"]
[Black "reflexia64"]
[Result "1-0"]
[WhiteElo "2040"]
[BlackElo "2330"]
[TimeControl "180+1"]
[EndTime "9:17:22 PDT"]
[Termination "Uživatel MrNikdo zvítězil na čas"]

1. e4 {[%clk 0:03:00.9]} 1... g6 {[%clk 0:02:57]} 2. d4 {[%clk 0:03:00.2]} 2...
Bg7 {[%clk 0:02:56.9]} 3. Nc3 {[%clk 0:02:57.6]} 3... d6 {[%clk 0:02:56.7]} 4.
Nf3 {[%clk 0:02:56.3]} 4... a6 {[%clk 0:02:56.7]} 5. a4 {[%clk 0:02:55.9]} 5...
Nd7 {[%clk 0:02:53.4]} 6. Bc4 {[%clk 0:02:55.3]} 6... e6 {[%clk 0:02:52.4]} 7.
Bg5 {[%clk 0:02:51.7]} 7... Ne7 {[%clk 0:02:46.8]} 8. Qd2 {[%clk 0:02:49.5]}
8... h6 {[%clk 0:02:45.7]} 9. Be3 {[%clk 0:02:47.5]} 9... d5 {[%clk 0:02:44.5]}
10. exd5 {[%clk 0:02:35.7]} 10... Nb6 {[%clk 0:02:43.5]} 11. Bb3 {[%clk
0:02:10]} 11... Nbxd5 {[%clk 0:02:41]} 12. O-O {[%clk 0:02:03.3]} 12... Nf5
{[%clk 0:02:14.3]} 13. Rad1 {[%clk 0:01:29.3]} 13... O-O {[%clk 0:02:12.5]} 14.
Ne4 {[%clk 0:01:21.7]} 14... b6 {[%clk 0:01:54.4]} 15. Ne5 {[%clk 0:01:11.6]}
15... Bb7 {[%clk 0:01:49.5]} 16. Ng3 {[%clk 0:00:53.7]} 16... Ndxe3 {[%clk
0:01:12.1]} 17. fxe3 {[%clk 0:00:54.6]} 17... Nxg3 {[%clk 0:01:10.7]} 18. hxg3
{[%clk 0:00:45.4]} 18... Qe7 {[%clk 0:00:43.3]} 19. Qf2 {[%clk 0:00:37]} 19...
Rad8 {[%clk 0:00:41]} 20. Qf4 {[%clk 0:00:27.6]} 20... Rd6 {[%clk 0:00:31]} 21.
Nc4 {[%clk 0:00:21]} 21... Rdd8 {[%clk 0:00:30.5]} 22. c3 {[%clk 0:00:20.5]}
22... Kh7 {[%clk 0:00:26.1]} 23. e4 {[%clk 0:00:20.5]} 23... f6 {[%clk
0:00:17.6]} 24. e5 {[%clk 0:00:19.8]} 24... f5 {[%clk 0:00:16.1]} 25. Bc2 {[%clk
0:00:18.8]} 25... Kg8 {[%clk 0:00:14.5]} 26. Ne3 {[%clk 0:00:18.4]} 26... g5
{[%clk 0:00:13]} 27. Qf2 {[%clk 0:00:18.5]} 27... c5 {[%clk 0:00:11]} 28. g4
{[%clk 0:00:17.6]} 28... f4 {[%clk 0:00:09.1]} 29. Nc4 {[%clk 0:00:17.6]} 29...
cxd4 {[%clk 0:00:07.1]} 30. Nd6 {[%clk 0:00:17.6]} 1-0

[Event "Betsys MČR v online bleskovém šachu 2021"]
[Site "Chess.com"]
[Date "2021.04.17"]
[Round "2"]
[White "TheRigos"]
[Black "Lukuluss88"]
[Result "1-0"]
[WhiteElo "2537"]
[BlackElo "2072"]
[TimeControl "180+1"]
[EndTime "9:17:23 PDT"]
[Termination "Uživatel TheRigos zvítězil na čas"]

1. e4 {[%clk 0:03:00.9]} 1... d5 {[%clk 0:02:59.5]} 2. exd5 {[%clk 0:03:00]}
2... Qxd5 {[%clk 0:02:59.5]} 3. Nc3 {[%clk 0:03:00.4]} 3... Qa5 {[%clk
0:02:59.5]} 4. d4 {[%clk 0:03:00.9]} 4... c6 {[%clk 0:02:59.6]} 5. Bc4 {[%clk
0:03:00.6]} 5... Bf5 {[%clk 0:02:57.7]} 6. Nf3 {[%clk 0:02:58.2]} 6... e6 {[%clk
0:02:57.4]} 7. Bd2 {[%clk 0:02:58.4]} 7... Qc7 {[%clk 0:02:56.1]} 8. Qe2 {[%clk
0:02:51.3]} 8... Be7 {[%clk 0:02:48.8]} 9. Ne5 {[%clk 0:02:47.3]} 9... Nd7
{[%clk 0:02:42.5]} 10. f4 {[%clk 0:02:35.4]} 10... Nxe5 {[%clk 0:02:16.5]} 11.
fxe5 {[%clk 0:02:34.3]} 11... O-O-O {[%clk 0:02:09.8]} 12. Be3 {[%clk
0:02:27.6]} 12... Bb4 {[%clk 0:01:49.8]} 13. O-O-O {[%clk 0:02:20.6]} 13... Bxc3
{[%clk 0:01:48.3]} 14. bxc3 {[%clk 0:02:21.5]} 14... Ne7 {[%clk 0:01:46.5]} 15.
Kb2 {[%clk 0:01:59.4]} 15... Nd5 {[%clk 0:01:45.4]} 16. Bf2 {[%clk 0:01:56.5]}
16... Qb6+ {[%clk 0:01:40.9]} 17. Bb3 {[%clk 0:01:56.8]} 17... Qa5 {[%clk
0:01:37.5]} 18. Be1 {[%clk 0:01:53.6]} 18... Qb6 {[%clk 0:01:19]} 19. c4 {[%clk
0:01:51.1]} 19... Ne7 {[%clk 0:00:55.7]} 20. c5 {[%clk 0:01:36.5]} 20... Qc7
{[%clk 0:00:47.7]} 21. c4 {[%clk 0:01:36]} 21... b6 {[%clk 0:00:31]} 22. Bb4
{[%clk 0:01:31.6]} 22... Rd7 {[%clk 0:00:19]} 23. Rhf1 {[%clk 0:01:13.5]} 23...
Bg6 {[%clk 0:00:17.9]} 24. g4 {[%clk 0:01:00.5]} 24... h5 {[%clk 0:00:16.9]} 25.
h3 {[%clk 0:01:00.1]} 25... hxg4 {[%clk 0:00:16.6]} 26. hxg4 {[%clk 0:01:00.5]}
26... Kb7 {[%clk 0:00:16.9]} 27. cxb6 {[%clk 0:00:53.2]} 27... axb6 {[%clk
0:00:16.3]} 28. Bd6 {[%clk 0:00:53.3]} 28... Qc8 {[%clk 0:00:14.4]} 29. Ka1
{[%clk 0:00:45.2]} 29... Qa8 {[%clk 0:00:12]} 30. Bc2 {[%clk 0:00:44.9]} 30...
Bxc2 {[%clk 0:00:10]} 31. Qxc2 {[%clk 0:00:44.9]} 31... Ng6 {[%clk 0:00:10]} 32.
Rb1 {[%clk 0:00:44]} 32... Qa6 {[%clk 0:00:07.6]} 33. Rb4 {[%clk 0:00:36.4]}
33... Ra8 {[%clk 0:00:06.7]} 34. Rfb1 {[%clk 0:00:36]} 34... Kc8 {[%clk
0:00:05]} 35. Rxb6 {[%clk 0:00:35.5]} 35... Qa7 {[%clk 0:00:03.7]} 36. Qb3
{[%clk 0:00:34.1]} 1-0

[Event "Betsys MČR v online bleskovém šachu 2021"]
[Site "Chess.com"]
[Date "2021.04.17"]
[Round "2"]
[White "tudlenudle"]
[Black "FBingoPlayer"]
[Result "1-0"]
[WhiteElo "1904"]
[BlackElo "2202"]
[TimeControl "180+1"]
[EndTime "9:17:23 PDT"]
[Termination "Uživatel tudlenudle zvítězil na čas"]

1. e4 {[%clk 0:03:00.9]} 1... e6 {[%clk 0:02:58.3]} 2. d4 {[%clk 0:03:00.3]}
2... d5 {[%clk 0:02:58.6]} 3. Nc3 {[%clk 0:03:01.2]} 3... Nf6 {[%clk 0:02:58.4]}
4. e5 {[%clk 0:03:01.2]} 4... Nfd7 {[%clk 0:02:58.7]} 5. f4 {[%clk 0:03:02.1]}
5... c5 {[%clk 0:02:58.9]} 6. Nf3 {[%clk 0:03:03]} 6... Nc6 {[%clk 0:02:59.4]}
7. Be3 {[%clk 0:03:03.1]} 7... Be7 {[%clk 0:02:57.3]} 8. Qd2 {[%clk 0:03:02.5]}
8... O-O {[%clk 0:02:56.6]} 9. O-O-O {[%clk 0:03:02.3]} 9... a6 {[%clk
0:02:39.7]} 10. h4 {[%clk 0:02:52.1]} 10... c4 {[%clk 0:02:34.8]} 11. h5 {[%clk
0:02:47.3]} 11... b5 {[%clk 0:02:32.1]} 12. Ne2 {[%clk 0:02:32.6]} 12... b4
{[%clk 0:02:28.5]} 13. c3 {[%clk 0:02:31.4]} 13... Qa5 {[%clk 0:02:24.8]} 14.
Kb1 {[%clk 0:02:14.6]} 14... Rb8 {[%clk 0:02:24.8]} 15. Ka1 {[%clk 0:02:13.7]}
15... b3 {[%clk 0:02:14.5]} 16. Nc1 {[%clk 0:01:49.6]} 16... bxa2 {[%clk
0:02:04.5]} 17. f5 {[%clk 0:01:17.2]} 17... Qa4 {[%clk 0:02:02.9]} 18. fxe6
{[%clk 0:01:01.5]} 18... fxe6 {[%clk 0:02:00.1]} 19. Ng5 {[%clk 0:00:39.4]}
19... Bxg5 {[%clk 0:00:32.4]} 20. Bxg5 {[%clk 0:00:39.3]} 20... Na5 {[%clk
0:00:28.7]} 21. h6 {[%clk 0:00:39.2]} 21... g6 {[%clk 0:00:26.4]} 22. Be2 {[%clk
0:00:35.9]} 22... Nb3+ {[%clk 0:00:15.3]} 23. Nxb3 {[%clk 0:00:35.8]} 23... Qxb3
{[%clk 0:00:12.3]} 24. Rdf1 {[%clk 0:00:20.2]} 24... Bb7 {[%clk 0:00:12.3]} 25.
Be7 {[%clk 0:00:18.5]} 25... Rf7 {[%clk 0:00:09.6]} 26. Rxf7 {[%clk 0:00:14.6]}
26... Kxf7 {[%clk 0:00:10.5]} 27. Bd6 {[%clk 0:00:15.3]} 27... Rc8 {[%clk
0:00:08.3]} 28. Rf1+ {[%clk 0:00:15.8]} 28... Kg8 {[%clk 0:00:08.9]} 29. Qf4
{[%clk 0:00:14.7]} 1-0

[Event "Betsys MČR v online bleskovém šachu 2021"]
[Site "Chess.com"]
[Date "2021.04.17"]
[Round "2"]
[White "DominikS3"]
[Black "jarosymon"]
[Result "0-1"]
[WhiteElo "1313"]
[BlackElo "1783"]
[TimeControl "180+1"]
[EndTime "9:17:27 PDT"]
[Termination "Uživatel jarosymon zvítězil na čas"]

1. d4 {[%clk 0:03:00.9]} 1... d5 {[%clk 0:02:59.4]} 2. c4 {[%clk 0:02:59.7]}
2... e6 {[%clk 0:02:59.1]} 3. Nc3 {[%clk 0:02:59.3]} 3... c5 {[%clk 0:02:59.2]}
4. e3 {[%clk 0:02:55.7]} 4... Nf6 {[%clk 0:02:58.6]} 5. Nf3 {[%clk 0:02:54]}
5... a6 {[%clk 0:02:58.6]} 6. cxd5 {[%clk 0:02:53.7]} 6... exd5 {[%clk
0:02:58.3]} 7. Bd3 {[%clk 0:02:53.1]} 7... c4 {[%clk 0:02:57.4]} 8. Bc2 {[%clk
0:02:52]} 8... b5 {[%clk 0:02:57.5]} 9. a3 {[%clk 0:02:50.8]} 9... Bb7 {[%clk
0:02:51.2]} 10. O-O {[%clk 0:02:49.1]} 10... Bd6 {[%clk 0:02:50]} 11. b3 {[%clk
0:02:40.7]} 11... O-O {[%clk 0:02:40.2]} 12. bxc4 {[%clk 0:02:39]} 12... dxc4
{[%clk 0:02:36]} 13. Qe2 {[%clk 0:02:32.6]} 13... Nbd7 {[%clk 0:02:23.2]} 14.
Bb2 {[%clk 0:02:20.2]} 14... Nb6 {[%clk 0:02:08.2]} 15. Rab1 {[%clk 0:01:39.1]}
15... Re8 {[%clk 0:02:07.2]} 16. a4 {[%clk 0:01:37.4]} 16... b4 {[%clk
0:02:04.9]} 17. Nd1 {[%clk 0:01:29.9]} 17... a5 {[%clk 0:01:58.1]} 18. Rc1
{[%clk 0:01:21.5]} 18... c3 {[%clk 0:01:38.9]} 19. Ba1 {[%clk 0:01:19.6]} 19...
Ne4 {[%clk 0:01:33.4]} 20. Qb5 {[%clk 0:01:06.5]} 20... Ba6 {[%clk 0:01:26.2]}
21. Qf5 {[%clk 0:01:02.5]} 21... g6 {[%clk 0:01:23.8]} 22. Qh3 {[%clk
0:00:52.3]} 22... Bxf1 {[%clk 0:01:17]} 23. Bxe4 {[%clk 0:00:48]} 23... Bxg2
{[%clk 0:01:06.7]} 24. Qxg2 {[%clk 0:00:41.2]} 24... Rxe4 {[%clk 0:01:05.5]} 25.
Ng5 {[%clk 0:00:37.3]} 25... Rh4 {[%clk 0:00:56.3]} 26. h3 {[%clk 0:00:24.5]}
26... h6 {[%clk 0:00:43.6]} 27. Nf3 {[%clk 0:00:20.1]} 27... Rh5 {[%clk
0:00:33.6]} 28. Rc2 {[%clk 0:00:14.4]} 28... Qf6 {[%clk 0:00:33.1]} 29. Kh1
{[%clk 0:00:11.1]} 29... Nd5 {[%clk 0:00:28.7]} 30. Kg1 {[%clk 0:00:06.3]} 30...
Re8 {[%clk 0:00:28.1]} 31. Kh1 {[%clk 0:00:05.8]} 31... Re4 {[%clk 0:00:26.9]}
32. Kg1 {[%clk 0:00:03.6]} 32... Reh4 {[%clk 0:00:25.9]} 0-1

[Event "Betsys MČR v online bleskovém šachu 2021"]
[Site "Chess.com"]
[Date "2021.04.17"]
[Round "2"]
[White "malviny"]
[Black "JaraLinhart"]
[Result "0-1"]
[WhiteElo "1148"]
[BlackElo "1678"]
[TimeControl "180+1"]
[EndTime "9:17:27 PDT"]
[Termination "Uživatel JaraLinhart zvítězil matem"]

1. e4 {[%clk 0:03:00.9]} 1... e5 {[%clk 0:02:58.3]} 2. Nf3 {[%clk 0:03:01]} 2...
Nc6 {[%clk 0:02:57.8]} 3. d4 {[%clk 0:03:01.4]} 3... exd4 {[%clk 0:02:57.7]} 4.
Nxd4 {[%clk 0:03:01.6]} 4... Bc5 {[%clk 0:02:57.5]} 5. Nxc6 {[%clk 0:03:00.9]}
5... Qf6 {[%clk 0:02:56.9]} 6. Qe2 {[%clk 0:02:53.5]} 6... dxc6 {[%clk
0:02:51.2]} 7. Nc3 {[%clk 0:02:49.8]} 7... Be6 {[%clk 0:02:24.2]} 8. e5 {[%clk
0:02:49.3]} 8... Qg6 {[%clk 0:02:18.7]} 9. Ne4 {[%clk 0:02:45.5]} 9... Bb6
{[%clk 0:02:14.7]} 10. Be3 {[%clk 0:02:28.6]} 10... Qxe4 {[%clk 0:02:12.1]} 11.
O-O-O {[%clk 0:02:22.3]} 11... Qxe5 {[%clk 0:01:51.7]} 12. Bxb6 {[%clk
0:02:11.5]} 12... Qxe2 {[%clk 0:01:50.4]} 13. Bxe2 {[%clk 0:02:11.3]} 13... axb6
{[%clk 0:01:50.4]} 14. Rhe1 {[%clk 0:02:07.5]} 14... Ne7 {[%clk 0:01:40.3]} 15.
b3 {[%clk 0:02:07.4]} 15... Rxa2 {[%clk 0:01:37.3]} 16. Kb1 {[%clk 0:02:06.6]}
16... Ra8 {[%clk 0:01:36.4]} 17. Bh5 {[%clk 0:01:59]} 17... O-O {[%clk
0:01:30.1]} 18. Re4 {[%clk 0:01:51.1]} 18... Nd5 {[%clk 0:01:28.1]} 19. Rh4
{[%clk 0:01:40.8]} 19... Nc3+ {[%clk 0:01:25.7]} 20. Kc1 {[%clk 0:01:40.9]}
20... Nxd1 {[%clk 0:01:25.9]} 21. Kxd1 {[%clk 0:01:40.9]} 21... Rfd8+ {[%clk
0:01:26.3]} 22. Kc1 {[%clk 0:01:37.6]} 22... c5 {[%clk 0:01:20.7]} 23. Bf3
{[%clk 0:01:33.1]} 23... c6 {[%clk 0:01:13.7]} 24. Kb2 {[%clk 0:01:32.4]} 24...
b5 {[%clk 0:01:08.8]} 25. Be4 {[%clk 0:01:31.5]} 25... h6 {[%clk 0:01:07.3]} 26.
f4 {[%clk 0:01:27.3]} 26... b4 {[%clk 0:01:05.1]} 27. f5 {[%clk 0:01:26.8]}
27... Bd5 {[%clk 0:00:53.2]} 28. Bxd5 {[%clk 0:01:14.6]} 28... Rxd5 {[%clk
0:00:50.5]} 29. Rf4 {[%clk 0:01:11.6]} 29... Rd1 {[%clk 0:00:47.2]} 30. f6
{[%clk 0:01:08]} 30... Raa1 {[%clk 0:00:45]} 31. c4 {[%clk 0:00:58.4]} 31... Rg1
{[%clk 0:00:36.3]} 32. Rf2 {[%clk 0:00:54.8]} 32... Rad1 {[%clk 0:00:35.8]} 33.
Kc2 {[%clk 0:00:51.5]} 33... Ra1 {[%clk 0:00:32.3]} 34. Kb2 {[%clk 0:00:48.7]}
34... Rgb1+ {[%clk 0:00:31.2]} 35. Kc2 {[%clk 0:00:48.2]} 35... Ra2+ {[%clk
0:00:31.7]} 36. Kxb1 {[%clk 0:00:47.5]} 36... Rxf2 {[%clk 0:00:32.6]} 37. fxg7
{[%clk 0:00:45.8]} 37... Kxg7 {[%clk 0:00:32.4]} 38. g4 {[%clk 0:00:44.1]} 38...
Kf6 {[%clk 0:00:32.4]} 39. h4 {[%clk 0:00:43.4]} 39... Ke5 {[%clk 0:00:32.7]}
40. g5 {[%clk 0:00:43.2]} 40... hxg5 {[%clk 0:00:31.6]} 41. h5 {[%clk
0:00:43.4]} 41... Kd4 {[%clk 0:00:32.5]} 42. h6 {[%clk 0:00:42.6]} 42... Kc3
{[%clk 0:00:31.7]} 43. h7 {[%clk 0:00:42]} 43... Rh2 {[%clk 0:00:31.7]} 44.
h8=Q+ {[%clk 0:00:40.2]} 44... Rxh8 {[%clk 0:00:30.7]} 45. Ka2 {[%clk
0:00:35.5]} 45... Ra8+ {[%clk 0:00:31]} 46. Kb1 {[%clk 0:00:34.9]} 46... Ra3
{[%clk 0:00:30.8]} 47. Kc1 {[%clk 0:00:31.8]} 47... Ra1# {[%clk 0:00:31.2]} 0-1

[Event "Betsys MČR v online bleskovém šachu 2021"]
[Site "Chess.com"]
[Date "2021.04.17"]
[Round "2"]
[White "keram91"]
[Black "Z_u_z_i"]
[Result "0-1"]
[WhiteElo "761"]
[BlackElo "1545"]
[TimeControl "180+1"]
[EndTime "9:17:27 PDT"]
[Termination "Uživatel Z_u_z_i zvítězil matem"]

1. d4 {[%clk 0:03:00.9]} 1... d5 {[%clk 0:02:59.2]} 2. Nc3 {[%clk 0:02:58.3]}
2... Nf6 {[%clk 0:02:57.1]} 3. f3 {[%clk 0:02:55.9]} 3... Bf5 {[%clk 0:02:55]}
4. g4 {[%clk 0:02:54]} 4... Bg6 {[%clk 0:02:54.2]} 5. g5 {[%clk 0:02:53.4]} 5...
Nh5 {[%clk 0:02:47.9]} 6. Bh3 {[%clk 0:02:48.9]} 6... e6 {[%clk 0:02:46.7]} 7.
a4 {[%clk 0:02:44.4]} 7... Bd6 {[%clk 0:02:45.9]} 8. a5 {[%clk 0:02:39.1]} 8...
Nc6 {[%clk 0:02:44.4]} 9. a6 {[%clk 0:02:36.4]} 9... b6 {[%clk 0:02:40.8]} 10.
Nb5 {[%clk 0:02:32.3]} 10... Nb4 {[%clk 0:02:28.8]} 11. Nxd6+ {[%clk 0:02:27.5]}
11... Qxd6 {[%clk 0:02:27.5]} 12. f4 {[%clk 0:02:19.7]} 12... Nxf4 {[%clk
0:02:13.5]} 13. Bg4 {[%clk 0:02:13.2]} 13... Nxc2+ {[%clk 0:02:07.6]} 14. Kf1
{[%clk 0:02:04.9]} 14... O-O {[%clk 0:01:45.5]} 15. e3 {[%clk 0:01:42.7]} 15...
Bd3+ {[%clk 0:01:24.2]} 16. Kf2 {[%clk 0:01:29.3]} 16... f5 {[%clk 0:01:06.5]}
17. exf4 {[%clk 0:01:24.2]} 17... fxg4 {[%clk 0:01:05.8]} 18. f5 {[%clk
0:01:15.8]} 18... Bxf5 {[%clk 0:01:02.3]} 19. Ne2 {[%clk 0:01:07.2]} 19... Be4+
{[%clk 0:00:59.5]} 20. Kg1 {[%clk 0:01:01.3]} 20... Bxh1 {[%clk 0:00:57.9]} 21.
Kxh1 {[%clk 0:00:58.4]} 21... Nb4 {[%clk 0:00:53.3]} 22. g6 {[%clk 0:00:50.8]}
22... hxg6 {[%clk 0:00:46.8]} 23. Nf4 {[%clk 0:00:50.5]} 23... Rf5 {[%clk
0:00:36.4]} 24. Nxg6 {[%clk 0:00:48.8]} 24... Rh5 {[%clk 0:00:29.9]} 25. Ne7+
{[%clk 0:00:40.2]} 25... Qxe7 {[%clk 0:00:27.8]} 26. Qxg4 {[%clk 0:00:31.8]}
26... Rf5 {[%clk 0:00:20.9]} 27. Bd2 {[%clk 0:00:26.7]} 27... Nc2 {[%clk
0:00:19.3]} 28. Rg1 {[%clk 0:00:24.3]} 28... Raf8 {[%clk 0:00:17.3]} 29. Qh5
{[%clk 0:00:20]} 29... Rf1 {[%clk 0:00:15.5]} 30. Bh6 {[%clk 0:00:12.8]} 30...
Rxg1+ {[%clk 0:00:14.7]} 31. Kxg1 {[%clk 0:00:11.6]} 31... Qf6 {[%clk
0:00:12.6]} 32. Bxg7 {[%clk 0:00:09.6]} 32... Qxg7+ {[%clk 0:00:12.2]} 33. Kh1
{[%clk 0:00:07.8]} 33... Rf1# {[%clk 0:00:11.5]} 0-1

[Event "Betsys MČR v online bleskovém šachu 2021"]
[Site "Chess.com"]
[Date "2021.04.17"]
[Round "2"]
[White "dnovotny"]
[Black "bezzuton"]
[Result "0-1"]
[WhiteElo "1778"]
[BlackElo "1418"]
[TimeControl "180+1"]
[EndTime "9:17:29 PDT"]
[Termination "Uživatel bezzuton zvítězil na čas"]

1. d4 {[%clk 0:03:00.5]} 1... Nf6 {[%clk 0:02:57.8]} 2. Nc3 {[%clk 0:03:00.4]}
2... d5 {[%clk 0:02:56.5]} 3. Bf4 {[%clk 0:02:59.5]} 3... Bf5 {[%clk 0:02:54.6]}
4. f3 {[%clk 0:02:59.2]} 4... e6 {[%clk 0:02:44]} 5. g4 {[%clk 0:02:56]} 5...
Bg6 {[%clk 0:02:42.7]} 6. h4 {[%clk 0:02:54.3]} 6... c5 {[%clk 0:02:30.7]} 7. h5
{[%clk 0:02:28.2]} 7... Bxc2 {[%clk 0:02:23.9]} 8. Qxc2 {[%clk 0:02:26.6]} 8...
cxd4 {[%clk 0:02:22.8]} 9. Nb1 {[%clk 0:01:48.7]} 9... Nc6 {[%clk 0:02:20.4]}
10. e3 {[%clk 0:01:40.2]} 10... Rc8 {[%clk 0:02:15.4]} 11. Bb5 {[%clk
0:01:31.3]} 11... Qa5+ {[%clk 0:02:06]} 12. Nd2 {[%clk 0:01:08.3]} 12... Qxb5
{[%clk 0:02:01.1]} 13. exd4 {[%clk 0:00:56.5]} 13... Be7 {[%clk 0:01:49.8]} 14.
Ne2 {[%clk 0:00:39.2]} 14... Qxe2+ {[%clk 0:01:42.5]} 15. Kxe2 {[%clk
0:00:36.6]} 15... Nxd4+ {[%clk 0:01:42.5]} 16. Kd3 {[%clk 0:00:32.8]} 16... Nxc2
{[%clk 0:01:30.4]} 17. Rac1 {[%clk 0:00:27.4]} 17... Nb4+ {[%clk 0:01:26.4]} 18.
Ke2 {[%clk 0:00:22.3]} 18... O-O {[%clk 0:01:22.7]} 19. a3 {[%clk 0:00:21.3]}
19... Nc6 {[%clk 0:01:21]} 20. g5 {[%clk 0:00:17.6]} 20... Nd4+ {[%clk
0:01:18.7]} 21. Kf2 {[%clk 0:00:15.9]} 21... Nd7 {[%clk 0:01:17.5]} 22. Be3
{[%clk 0:00:14.5]} 22... Nf5 {[%clk 0:01:13.6]} 23. Bxa7 {[%clk 0:00:12.5]}
23... b6 {[%clk 0:01:10.5]} 24. g6 {[%clk 0:00:11.4]} 24... fxg6 {[%clk
0:01:09.4]} 25. hxg6 {[%clk 0:00:11.9]} 25... hxg6 {[%clk 0:01:09.5]} 26. Rcg1
{[%clk 0:00:06.1]} 26... Ra8 {[%clk 0:01:05.8]} 27. Rxg6 {[%clk 0:00:04.4]}
27... Rxa7 {[%clk 0:01:03.9]} 28. Rxe6 {[%clk 0:00:04.3]} 28... Nc5 {[%clk
0:01:03.3]} 29. Rxb6 {[%clk 0:00:03.4]} 29... Bf6 {[%clk 0:01:00.5]} 30. Kg2
{[%clk 0:00:03.9]} 30... Ne3+ {[%clk 0:00:59.6]} 31. Kg3 {[%clk 0:00:03.5]}
31... Be5+ {[%clk 0:00:59.3]} 32. Kh4 {[%clk 0:00:02.1]} 32... Rf4+ {[%clk
0:00:56.1]} 33. Kg5 {[%clk 0:00:02.3]} 33... Rf5+ {[%clk 0:00:54.9]} 34. Kg6
{[%clk 0:00:02.1]} 34... Raf7 {[%clk 0:00:45]} 35. Rb8+ {[%clk 0:00:01.5]} 35...
Bxb8 {[%clk 0:00:40.4]} 36. Ne4 {[%clk 0:00:01.5]} 36... dxe4 {[%clk 0:00:39.2]}
0-1